fUST/lending_fUST_20241217
["ID","MTS","AMOUNT","RATE_DAILY","PERIOD"]
[345599089,1734376242714,-2649.979456,0.0002974,7]
[345599091,1734376242724,-2649.979456,0.0002974,7]
[345599093,1734376242733,-2649.979456,0.0002974,7]
[345599096,1734376242743,-2649.979448,0.0002974,7]
[345599109,1734376242894,-151.0,0.0002974,7]
[345599111,1734376242904,-151.0,0.0002974,7]
[345599113,1734376242914,-151.0,0.0002974,7]
[345599114,1734376242923,-151.0,0.0002974,7]
[345599116,1734376242933,-151.0,0.0002974,7]
[345599118,1734376242942,-152.351731,0.0002974,7]
[345599119,1734376242951,-151.0,0.0002974,7]
[345599120,1734376242961,-151.0,0.0002974,7]
[345599122,1734376242970,-151.0,0.0002974,7]
[345599123,1734376242980,-151.0,0.0002974,7]
[345599125,1734376242989,-151.0,0.0002974,7]
[345599126,1734376242999,-151.0,0.0002974,7]
[345599128,1734376243008,-151.0,0.0002974,7]
[345599130,1734376243018,-151.0,0.0002974,7]
[345599131,1734376243027,-151.0,0.0002974,7]
[345599133,1734376243036,-151.0,0.0002974,7]
[345599134,1734376243046,-151.0,0.0002974,7]
[345599136,1734376243055,-475.531092,0.0002974,7]
[345599138,1734376243064,-151.0,0.0002974,7]
[345599139,1734376243073,-151.0,0.0002974,7]
[345599141,1734376243083,-151.0,0.0002974,7]
[345599143,1734376243092,-475.531092,0.0002974,7]
[345599144,1734376243101,-151.0,0.0002974,7]
[345599146,1734376243111,-151.0,0.0002974,7]
[345599148,1734376243120,-475.531092,0.0002974,7]
[345599149,1734376243135,-151.0,0.0002974,7]
[345599150,1734376243144,-151.0,0.0002974,7]
[345599151,1734376243154,-151.0,0.0002974,7]
[345599152,1734376243164,-475.531092,0.0002974,7]
[345599153,1734376243173,-151.0,0.0002974,7]
[345599154,1734376243183,-151.0,0.0002974,7]
[345599155,1734376243193,-151.0,0.0002974,7]
[345599156,1734376243202,-475.531092,0.0002974,7]
[345599157,1734376243211,-151.0,0.0002974,7]
[345599158,1734376243224,-151.0,0.0002974,7]
[345599159,1734376243234,-151.0,0.0002974,7]
[345599160,1734376243243,-475.531092,0.0002974,7]
[345599161,1734376243252,-151.0,0.0002974,7]
[345599162,1734376243262,-151.0,0.0002974,7]
[345599163,1734376243271,-152.554717,0.0002974,7]
[345599164,1734376243281,-475.531092,0.0002974,7]
[345599165,1734376243290,-151.0,0.0002974,7]
[345599166,1734376243301,-151.0,0.0002974,7]
[345599167,1734376243311,-475.531092,0.0002974,7]
[345599168,1734376243321,-151.0,0.0002974,7]
[345599169,1734376243330,-151.0,0.0002974,7]
[345599170,1734376243340,-475.531092,0.0002974,7]
[345599171,1734376243349,-284.854293,0.0002974,7]
[345599172,1734376243359,-151.0,0.0002974,7]
[345599173,1734376243368,-475.531092,0.0002974,7]
[345599174,1734376243378,-151.0,0.0002974,7]
[345599175,1734376243398,-151.0,0.0002974,7]
[345599176,1734376243407,-475.531092,0.0002974,7]
[345599177,1734376243417,-151.0,0.0002974,7]
[345599178,1734376243426,-151.0,0.0002974,7]
[345599179,1734376243436,-151.0,0.0002974,7]
[345599180,1734376243445,-475.531092,0.0002974,7]
[345599182,1734376243455,-151.0,0.0002974,7]
[345599183,1734376243465,-262.990426,0.0002974,7]
[345599184,1734376243474,-475.531092,0.0002974,7]
[345599186,1734376243484,-235.095144,0.0002974,7]
[345599187,1734376243493,-475.531092,0.0002974,7]
[345599188,1734376243503,-151.0,0.0002974,7]
[345599189,1734376243513,-475.531092,0.0002974,7]
[345599190,1734376243522,-151.0,0.0002974,7]
[345599191,1734376243532,-475.531092,0.0002974,7]
[345599192,1734376243542,-151.0,0.0002974,7]
[345599193,1734376243552,-498.442,0.0002974,7]
[345599195,1734376243562,-475.531092,0.0002974,7]
[345599197,1734376243571,-151.0,0.0002974,7]
[345599198,1734376243581,-498.442,0.0002974,7]
[345599199,1734376243591,-475.531092,0.0002974,7]
[345599200,1734376243600,-151.0,0.0002974,7]
[345599201,1734376243609,-498.442,0.0002974,7]
[345599202,1734376243619,-151.0,0.0002974,7]
[345599203,1734376243629,-475.531096,0.0002974,7]
[345599204,1734376243644,-498.442,0.0002974,7]
[345599205,1734376243653,-151.0,0.0002974,7]
[345599206,1734376243663,-498.442,0.0002974,7]
[345599207,1734376243672,-498.442,0.0002974,7]
[345599208,1734376243681,-151.0,0.0002974,7]
[345599209,1734376243691,-498.442,0.0002974,7]
[345599210,1734376243700,-151.0,0.0002974,7]
[345599211,1734376243709,-498.442,0.0002974,7]
[345599212,1734376243719,-498.442,0.0002974,7]
[345599213,1734376243728,-151.0,0.0002974,7]
[345599214,1734376243737,-498.442,0.0002974,7]
[345599215,1734376243747,-151.0,0.0002974,7]
[345599216,1734376243756,-498.442,0.0002974,7]
[345599217,1734376243766,-151.0,0.0002974,7]
[345599218,1734376243778,-498.442,0.0002974,7]
[345599219,1734376243787,-151.0,0.0002974,7]
[345599220,1734376243796,-498.442,0.0002974,7]
[345599221,1734376243806,-151.0,0.0002974,7]
[345599222,1734376243815,-498.442,0.0002974,7]
[345599223,1734376243825,-151.0,0.0002974,7]
[345599224,1734376243835,-498.442,0.0002974,7]
[345599225,1734376243843,-151.0,0.0002974,7]
[345599226,1734376243854,-498.442,0.0002974,7]
[345599227,1734376243864,-498.442,0.0002974,7]
[345599228,1734376243875,-498.442,0.0002974,7]
[345599229,1734376243892,-498.442,0.0002974,7]
[345599230,1734376243901,-498.44199303,0.0002974,7]
[345599231,1734376243911,-151.0,0.0002974,7]
[345599232,1734376243920,-151.0,0.0002974,7]
[345599233,1734376243929,-151.0,0.0002974,7]
[345599234,1734376243938,-151.0,0.0002974,7]
[345599235,1734376243948,-151.0,0.0002974,7]
[345599236,1734376243957,-235.115956,0.0002974,7]
[345599237,1734376243967,-1000.0,0.0002974,28]
[345599238,1734376243978,-1000.0,0.0002974,28]
[345599239,1734376243987,-1000.0,0.0002974,28]
[345599240,1734376243997,-1000.0,0.0002974,28]
[345599241,1734376244006,-1000.0,0.0002974,28]
[345599242,1734376244015,-1000.0,0.0002974,28]
[345599243,1734376244024,-1000.0,0.0002974,28]
[345599244,1734376244034,-1000.0,0.0002974,28]
[345599245,1734376244043,-1000.0,0.0002974,28]
[345599246,1734376244052,-1000.0,0.0002974,28]
[345599247,1734376244061,-1000.0,0.0002974,28]
[345599248,1734376244070,-1000.0,0.0002974,28]
[345599249,1734376244079,-1000.0,0.0002974,28]
[345599250,1734376244088,-1000.0,0.0002974,28]
[345599251,1734376244098,-1000.0,0.0002974,28]
[345599252,1734376244107,-1000.0,0.0002974,28]
[345599253,1734376244117,-1000.0,0.0002974,28]
[345599254,1734376244126,-1000.0,0.0002974,28]
[345599255,1734376244143,-1000.0,0.0002974,28]
[345599256,1734376244153,-1000.0,0.0002974,28]
[345599257,1734376244163,-1000.0,0.0002974,28]
[345599258,1734376244172,-1000.0,0.0002974,28]
[345599259,1734376244181,-1000.0,0.0002974,28]
[345599260,1734376244191,-1000.0,0.0002974,28]
[345599261,1734376244200,-1000.0,0.0002974,28]
[345599262,1734376244208,-1000.0,0.0002974,28]
[345599263,1734376244220,-1000.0,0.0002974,28]
[345599264,1734376244230,-1000.0,0.0002974,28]
[345599265,1734376244239,-1000.0,0.0002974,28]
[345599266,1734376244249,-1000.0,0.0002974,28]
[345599267,1734376244258,-1000.0,0.0002974,28]
[345599268,1734376244270,-1000.0,0.0002974,28]
[345599269,1734376244279,-1000.0,0.0002974,28]
[345599270,1734376244289,-1000.0,0.0002974,28]
[345599271,1734376244299,-1000.0,0.0002974,28]
[345599272,1734376244308,-722.755459,0.0002974,28]
[345599273,1734376244317,-5582.096373,0.0002974,7]
[345599274,1734376244327,-5582.096373,0.0002974,7]
[345599275,1734376244336,-5582.096373,0.0002974,7]
[345599276,1734376244345,-5582.096373,0.0002974,7]
[345599277,1734376244355,-5582.096373,0.0002974,7]
[345599278,1734376244365,-5582.096373,0.0002974,7]
[345599279,1734376244375,-5582.096373,0.0002974,7]
[345599280,1734376244392,-5582.096373,0.0002974,7]
[345599281,1734376244402,-5582.096373,0.0002974,7]
[345599282,1734376244412,-5582.096373,0.0002974,7]
[345599283,1734376244422,-5582.096373,0.0002974,7]
[345599284,1734376244431,-5582.096373,0.0002974,7]
[345599285,1734376244441,-5582.096373,0.0002974,7]
[345599286,1734376244451,-629.63134809,0.0002974,7]
[345599287,1734376244816,-1371.2,0.00027838,15]
[345599288,1734376244830,-768.49,0.00028493,7]
[345599289,1734376244841,-768.49,0.00028767,7]
[345599290,1734376244851,-386.82547554,0.00028775,2]
[345599291,1734376244862,-768.49,0.00029041,7]
[345599292,1734376244872,-768.49,0.00029315,7]
[345599293,1734376244889,-768.49,0.00029589,7]
[345599294,1734376244899,-4952.46502491,0.0002974,7]
[345599295,1734376244909,-289.11575813,0.0002974,7]
[345599296,1734376244921,-5292.98061487,0.0002974,7]
[345599297,1734376244931,-5582.096373,0.0002974,7]
[345599298,1734376244942,-5582.096373,0.0002974,7]
[345599299,1734376244952,-5582.096373,0.0002974,7]
[345599300,1734376244962,-5582.096373,0.0002974,7]
[345599301,1734376244972,-3764.03628137,0.0002974,7]
[345599302,1734376244984,-1818.06009663,0.0002974,7]
[345599303,1734376244994,-151.0,0.0002974,7]
[345599304,1734376245004,-151.0,0.0002974,7]
[345599305,1734376245013,-151.0,0.0002974,7]
[345599306,1734376245023,-151.0,0.0002974,7]
[345599307,1734376245033,-151.0,0.0002974,7]
[345599308,1734376245042,-151.0,0.0002974,7]
[345599309,1734376245052,-151.0,0.0002974,7]
[345599310,1734376245062,-151.0,0.0002974,7]
[345599311,1734376245071,-151.0,0.0002974,7]
[345599312,1734376245081,-4297.53990337,0.0002974,2]
[345599315,1734376245317,-182.314,0.00027354,2]
[345599316,1734376245326,-386.82547554,0.00028883,2]
[345599317,1734376245336,-243.30182933,0.00029629,2]
[345599318,1734376245345,-255452.70562466,0.0002974,2]
[345599319,1734376245354,-19931.90663351,0.0002974,2]
[345599320,1734376245363,-697211.04809974,0.0002974,10]
[345599321,1734376245375,-667301.21800533,0.0002974,10]
[345599322,1734376245396,-45491.24568573,0.0002974,10]
[345599328,1734376246087,-1319.867008,0.00027838,15]
[345599329,1734376246098,-386.82547554,0.00028991,2]
[345599330,1734376246107,-22154.2105817,0.0002974,10]
[345599331,1734376246119,-274502.65497805,0.0002974,10]
[345599333,1734376414826,165.891285,0.00013973,2]
[345599422,1734377432455,-1143.03232607,0.00022,2]
[345599423,1734377432465,-42.22167828,0.00022,2]
[345599424,1734377432477,-110.77832172,0.00022,2]
[345599425,1734377432487,-1602.2621474,0.00022466,6]
[345599426,1734377432496,-165.891285,0.00022759,2]
[345599427,1734377432505,-447.54963361,0.00024998,2]
[345599428,1734377432516,-300.0,0.00024999,2]
[345599429,1734377432525,-11151.25711497,0.00025,2]
[345599430,1734377432535,-5000.0,0.00025044,7]
[345599431,1734377432544,-1000.0,0.00025204,2]
[345599432,1734377432554,-160.11136248,0.0002538,2]
[345599433,1734377432567,-24900.0,0.00025413,2]
[345599434,1734377432577,-1000.0,0.0002548,2]
[345599435,1734377432586,-250.0,0.00025484,2]
[345599436,1734377432596,-4885.1429017,0.00025631,11]
[345599437,1734377432605,-289.969948,0.00025753,2]
[345599438,1734377432614,-226.278949,0.00025764,2]
[345599439,1734377432623,-105242.04595618,0.00026,20]
[345599440,1734377432634,-17111.58588907,0.00026,30]
[345599441,1734377432644,-2652.35667588,0.00026,7]
[345599442,1734377432653,-247872.47376899,0.00026,3]
[345599443,1734377432662,-500.0,0.00026027,7]
[345599444,1734377432671,-500.0,0.00026027,7]
[345599445,1734377432682,-500.0,0.00026027,7]
[345599446,1734377432692,-294.41,0.000264,7]
[345599447,1734377432702,-220.80947916,0.000264,7]
[345599448,1734377432711,-220.8,0.000264,7]
[345599449,1734377432720,-232.11,0.000264,7]
[345599450,1734377432729,-385.802474,0.000264,2]
[345599451,1734377432739,-500.0,0.00026499,2]
[345599452,1734377432748,-403.06716859,0.00026499,2]
[345599453,1734377432758,-353.42378566,0.00026499,2]
[345599454,1734377432767,-645.72176425,0.00026499,2]
[345599455,1734377432777,-324469.42068255,0.000265,2]
[345599456,1734377432787,-24779.20620796,0.000265,2]
[345599457,1734377432797,-7420896.32829953,0.000265,2]
[345599458,1734377432807,-16327.82,0.000265,2]
[345599459,1734377432817,-940.91,0.000265,14]
[345599460,1734377432827,-1150971.25135446,0.000267,7]
[345599461,1734377432837,-385.80247394,0.00026762,2]
[345599462,1734377432846,-30017.15230475,0.00027,3]
[345599463,1734377432856,-24317.0839758,0.00027,2]
[345599464,1734377432866,-15136.08467422,0.00027,5]
[345599465,1734377432876,-500.0,0.00027,2]
[345599466,1734377432886,-385.80247394,0.00027124,2]
[345599467,1734377432896,-500.0,0.00027373,2]
[345599468,1734377432906,-533.0,0.00027396,2]
[345599469,1734377432916,-2154.0,0.00027396,2]
[345599470,1734377432925,-2368.0,0.00027396,2]
[345599471,1734377432935,-500.0,0.00027397,7]
[345599472,1734377432945,-500.0,0.00027397,7]
[345599473,1734377432955,-500.0,0.00027397,7]
[345599474,1734377432965,-500.0,0.00027397,7]
[345599475,1734377432974,-500.0,0.00027397,7]
[345599476,1734377432984,-500.0,0.00027397,7]
[345599477,1734377432994,-500.0,0.00027397,7]
[345599478,1734377433004,-500.0,0.00027397,7]
[345599479,1734377433014,-500.0,0.00027397,7]
[345599480,1734377433025,-500.0,0.00027397,7]
[345599481,1734377433035,-500.0,0.00027397,7]
[345599482,1734377433045,-500.0,0.00027397,7]
[345599483,1734377433054,-500.0,0.00027397,7]
[345599484,1734377433064,-500.0,0.00027397,7]
[345599485,1734377433073,-500.0,0.00027397,7]
[345599486,1734377433083,-500.0,0.00027397,7]
[345599487,1734377433092,-761.28,0.00027397,7]
[345599488,1734377433101,-500.0,0.00027397,7]
[345599489,1734377433111,-500.0,0.00027397,7]
[345599490,1734377433121,-500.0,0.00027397,7]
[345599491,1734377433131,-1000.0,0.00027397,2]
[345599492,1734377433140,-500.0,0.00027397,7]
[345599493,1734377433150,-500.0,0.00027397,7]
[345599494,1734377433160,-500.0,0.00027397,7]
[345599495,1734377433170,-500.0,0.00027397,7]
[345599496,1734377433182,-500.0,0.00027397,7]
[345599497,1734377433195,-500.0,0.00027397,7]
[345599498,1734377433205,-168.0,0.00027397,7]
[345599499,1734377433214,-500.0,0.00027397,7]
[345599500,1734377433225,-500.0,0.00027397,7]
[345599501,1734377433235,-500.0,0.00027397,7]
[345599502,1734377433245,-533.49,0.00027397,7]
[345599503,1734377433255,-500.0,0.00027397,7]
[345599504,1734377433265,-500.0,0.00027397,7]
[345599505,1734377433275,-500.0,0.00027397,7]
[345599506,1734377433285,-631.62,0.00027397,2]
[345599507,1734377433295,-500.0,0.00027397,7]
[345599508,1734377433305,-357.99658431,0.00027397,7]
[345599509,1734377433315,-500.0,0.00027397,7]
[345599510,1734377433324,-500.0,0.00027397,7]
[345599511,1734377433334,-500.0,0.00027397,7]
[345599512,1734377433343,-500.0,0.00027397,7]
[345599513,1734377433353,-500.0,0.00027397,7]
[345599514,1734377433363,-500.0,0.00027397,7]
[345599515,1734377433372,-500.0,0.00027397,7]
[345599516,1734377433382,-10000.0,0.00027397,2]
[345599517,1734377433391,-500.0,0.00027397,7]
[345599518,1734377433401,-500.0,0.00027397,7]
[345599519,1734377433410,-500.0,0.00027397,7]
[345599520,1734377433419,-500.0,0.00027397,7]
[345599521,1734377433430,-500.0,0.00027397,2]
[345599522,1734377433439,-500.0,0.00027397,7]
[345599523,1734377433449,-500.0,0.00027397,7]
[345599524,1734377433458,-500.0,0.00027397,7]
[345599525,1734377433468,-500.0,0.00027397,7]
[345599526,1734377433478,-500.0,0.00027397,7]
[345599527,1734377433487,-500.0,0.00027397,7]
[345599528,1734377433496,-500.0,0.00027397,7]
[345599529,1734377433506,-500.0,0.00027397,7]
[345599530,1734377433516,-181.51,0.00027397,7]
[345599531,1734377433525,-500.0,0.00027397,7]
[345599532,1734377433535,-500.0,0.00027397,7]
[345599533,1734377433544,-247.61923412,0.00027397,7]
[345599534,1734377433555,-500.0,0.00027397,7]
[345599535,1734377433568,-500.0,0.00027397,7]
[345599536,1734377433577,-500.0,0.00027397,7]
[345599537,1734377433586,-500.0,0.00027397,7]
[345599538,1734377433595,-500.0,0.00027397,7]
[345599539,1734377433606,-458.83916112,0.00027397,7]
[345599540,1734377433615,-500.0,0.00027397,7]
[345599541,1734377433625,-3438.72,0.00027397,7]
[345599542,1734377433635,-500.0,0.00027397,7]
[345599543,1734377433645,-500.0,0.00027397,7]
[345599544,1734377433655,-500.0,0.00027397,2]
[345599545,1734377433664,-500.0,0.00027397,7]
[345599546,1734377433673,-1692.88,0.00027397,7]
[345599547,1734377433686,-2992.99,0.00027397,7]
[345599548,1734377433701,-500.0,0.00027397,7]
[345599549,1734377433711,-500.0,0.00027397,7]
[345599550,1734377433720,-548.83288069,0.00027397,7]
[345599551,1734377433730,-500.0,0.00027397,2]
[345599552,1734377433741,-500.0,0.00027397,7]
[345599553,1734377433751,-3976.78,0.00027397,7]
[345599554,1734377433760,-500.0,0.00027397,7]
[345599555,1734377433769,-500.0,0.00027397,7]
[345599556,1734377433779,-16669.58,0.00027397,7]
[345599557,1734377433789,-873.01,0.00027397,7]
[345599558,1734377433798,-976.59,0.00027397,7]
[345599559,1734377433808,-500.0,0.00027397,7]
[345599560,1734377433818,-500.0,0.00027397,7]
[345599561,1734377433828,-500.0,0.00027397,7]
[345599562,1734377433838,-500.0,0.00027397,7]
[345599563,1734377433848,-500.0,0.00027397,7]
[345599564,1734377433858,-500.0,0.00027397,7]
[345599565,1734377433868,-500.0,0.00027397,7]
[345599566,1734377433877,-500.0,0.00027397,7]
[345599567,1734377433887,-500.0,0.00027397,7]
[345599568,1734377433896,-500.0,0.00027397,7]
[345599569,1734377433906,-865.26,0.00027397,7]
[345599570,1734377433915,-500.0,0.00027397,7]
[345599571,1734377433925,-500.0,0.00027397,7]
[345599572,1734377433937,-500.0,0.00027397,7]
[345599573,1734377433947,-500.0,0.00027397,7]
[345599574,1734377433956,-548.79,0.00027397,7]
[345599575,1734377433965,-500.0,0.00027397,7]
[345599576,1734377433975,-1080.22,0.00027397,7]
[345599577,1734377433984,-500.0,0.00027397,7]
[345599578,1734377433994,-777.63,0.00027397,7]
[345599579,1734377434004,-605.77,0.00027397,7]
[345599580,1734377434013,-500.0,0.00027397,7]
[345599581,1734377434023,-1635.17,0.00027397,7]
[345599582,1734377434032,-500.0,0.00027397,7]
[345599583,1734377434041,-782.72,0.00027397,7]
[345599584,1734377434051,-500.0,0.00027397,7]
[345599585,1734377434060,-500.0,0.00027397,7]
[345599586,1734377434069,-500.0,0.00027397,7]
[345599587,1734377434083,-886.74,0.00027397,7]
[345599588,1734377434092,-5123.72,0.00027397,7]
[345599589,1734377434101,-500.0,0.00027397,7]
[345599590,1734377434111,-813.59,0.00027397,7]
[345599591,1734377434120,-500.0,0.00027397,7]
[345599592,1734377434130,-771.99,0.00027397,7]
[345599593,1734377434139,-500.0,0.00027397,7]
[345599594,1734377434148,-613.52,0.00027397,7]
[345599595,1734377434158,-500.0,0.00027397,7]
[345599596,1734377434166,-521.63,0.00027397,7]
[345599597,1734377434176,-813.75,0.00027397,7]
[345599598,1734377434188,-198.81821644,0.00027397,7]
[345599599,1734377434197,-500.0,0.00027397,7]
[345599600,1734377434207,-500.0,0.00027397,7]
[345599601,1734377434216,-587.77,0.00027397,7]
[345599602,1734377434225,-1187.15,0.00027397,5]
[345599603,1734377434235,-500.0,0.00027397,7]
[345599604,1734377434245,-500.0,0.00027397,7]
[345599605,1734377434254,-500.0,0.00027397,7]
[345599606,1734377434263,-385.80247394,0.00027486,2]
[345599607,1734377434273,-420.0,0.00027499,2]
[345599608,1734377434283,-251026.59499606,0.000275,120]
[345599609,1734377434293,-562.13248538,0.00027671,7]
[345599610,1734377434302,-500.0,0.00027671,7]
[345599611,1734377434312,-339.80673887,0.00027671,7]
[345599612,1734377434322,-500.0,0.00027671,7]
[345599613,1734377434331,-500.0,0.00027671,7]
[345599614,1734377434341,-500.0,0.00027671,7]
[345599615,1734377434350,-500.0,0.00027671,7]
[345599616,1734377434360,-500.0,0.00027671,7]
[345599617,1734377434369,-549.01,0.00027671,7]
[345599618,1734377434379,-500.0,0.00027671,7]
[345599619,1734377434389,-761.28,0.00027671,7]
[345599620,1734377434398,-500.0,0.00027671,7]
[345599621,1734377434408,-500.0,0.00027671,7]
[345599622,1734377434417,-500.0,0.00027671,7]
[345599623,1734377434427,-500.0,0.00027671,7]
[345599624,1734377434437,-500.0,0.00027671,7]
[345599625,1734377434447,-500.0,0.00027671,7]
[345599626,1734377434456,-168.02,0.00027671,7]
[345599627,1734377434465,-500.0,0.00027671,7]
[345599628,1734377434475,-500.0,0.00027671,7]
[345599629,1734377434484,-533.49,0.00027671,7]
[345599630,1734377434493,-500.0,0.00027671,7]
[345599631,1734377434503,-500.0,0.00027671,7]
[345599632,1734377434512,-631.62,0.00027671,2]
[345599633,1734377434522,-500.0,0.00027671,7]
[345599634,1734377434532,-500.0,0.00027671,7]
[345599635,1734377434543,-500.0,0.00027671,7]
[345599636,1734377434556,-500.0,0.00027671,7]
[345599637,1734377434566,-500.0,0.00027671,7]
[345599638,1734377434575,-500.0,0.00027671,7]
[345599639,1734377434585,-500.0,0.00027671,7]
[345599640,1734377434595,-500.0,0.00027671,7]
[345599641,1734377434604,-579.63,0.00027671,7]
[345599642,1734377434613,-500.0,0.00027671,7]
[345599643,1734377434623,-500.0,0.00027671,2]
[345599644,1734377434633,-448.62083192,0.00027671,7]
[345599645,1734377434644,-500.0,0.00027671,7]
[345599646,1734377434654,-500.0,0.00027671,7]
[345599647,1734377434664,-500.0,0.00027671,7]
[345599648,1734377434675,-500.0,0.00027671,7]
[345599649,1734377434691,-520.87,0.00027671,7]
[345599650,1734377434701,-500.0,0.00027671,7]
[345599651,1734377434711,-511.2321475,0.00027671,7]
[345599652,1734377434720,-516.43,0.00027671,7]
[345599653,1734377434730,-500.0,0.00027671,7]
[345599654,1734377434739,-3438.72,0.00027671,7]
[345599655,1734377434749,-573.43940285,0.00027671,7]
[345599656,1734377434759,-566.21,0.00027671,2]
[345599657,1734377434768,-520.07,0.00027671,7]
[345599658,1734377434778,-1692.88,0.00027671,7]
[345599659,1734377434787,-2992.99,0.00027671,7]
[345599660,1734377434797,-500.0,0.00027671,7]
[345599661,1734377434806,-3976.78,0.00027671,7]
[345599662,1734377434816,-16669.58,0.00027671,7]
[345599663,1734377434825,-873.01,0.00027671,7]
[345599664,1734377434835,-976.59,0.00027671,7]
[345599665,1734377434844,-500.0,0.00027671,7]
[345599666,1734377434854,-524.48,0.00027671,7]
[345599667,1734377434863,-500.0,0.00027671,7]
[345599668,1734377434873,-500.0,0.00027671,7]
[345599669,1734377434882,-500.0,0.00027671,7]
[345599670,1734377434891,-500.0,0.00027671,7]
[345599671,1734377434900,-865.26,0.00027671,7]
[345599672,1734377434910,-500.0,0.00027671,7]
[345599673,1734377434919,-500.0,0.00027671,7]
[345599674,1734377434930,-505.61,0.00027671,7]
[345599675,1734377434941,-500.0,0.00027671,7]
[345599676,1734377434951,-548.79,0.00027671,7]
[345599677,1734377434961,-500.0,0.00027671,7]
[345599678,1734377434970,-1080.22,0.00027671,7]
[345599679,1734377434979,-500.0,0.00027671,7]
[345599680,1734377434989,-777.63,0.00027671,7]
[345599681,1734377434999,-605.77,0.00027671,7]
[345599682,1734377435008,-553.7,0.00027671,7]
[345599683,1734377435017,-1635.17,0.00027671,7]
[345599684,1734377435027,-500.0,0.00027671,7]
[345599685,1734377435036,-782.72,0.00027671,7]
[345599686,1734377435045,-210.88834117,0.00027671,7]
[345599687,1734377435054,-500.0,0.00027671,7]
[345599688,1734377435064,-500.0,0.00027671,7]
[345599689,1734377435073,-886.74,0.00027671,7]
[345599690,1734377435083,-5123.72,0.00027671,7]
[345599691,1734377435092,-500.0,0.00027671,7]
[345599692,1734377435101,-813.59,0.00027671,7]
[345599693,1734377435110,-500.0,0.00027671,7]
[345599694,1734377435119,-771.99,0.00027671,7]
[345599695,1734377435128,-500.0,0.00027671,7]
[345599696,1734377435137,-613.52,0.00027671,7]
[345599697,1734377435146,-500.0,0.00027671,7]
[345599698,1734377435155,-521.63,0.00027671,7]
[345599699,1734377435164,-813.75,0.00027671,7]
[345599700,1734377435173,-500.0,0.00027671,7]
[345599701,1734377435183,-563.36,0.00027671,7]
[345599702,1734377435192,-587.77,0.00027671,7]
[345599703,1734377435201,-1187.15,0.00027671,5]
[345599704,1734377435211,-500.0,0.00027671,7]
[345599705,1734377435220,-500.0,0.00027671,7]
[345599706,1734377435229,-500.0,0.00027671,7]
[345599707,1734377435238,-153.0,0.00027841,2]
[345599708,1734377435247,-153.0,0.00027841,2]
[345599709,1734377435256,-153.0,0.00027841,2]
[345599710,1734377435266,-153.0,0.00027841,2]
[345599711,1734377435275,-153.0,0.00027841,2]
[345599712,1734377435284,-153.0,0.00027841,2]
[345599713,1734377435294,-153.0,0.00027843,2]
[345599714,1734377435303,-385.80247394,0.00027848,2]
[345599715,1734377435312,-1807.92,0.000279,2]
[345599716,1734377435322,-500.0,0.00027945,7]
[345599717,1734377435331,-500.0,0.00027945,7]
[345599718,1734377435340,-500.0,0.00027945,7]
[345599719,1734377435350,-761.28,0.00027945,7]